[Event "*** SCC Grand Prix: Titled Tuesday Blitz"]
[Site "Chess.com"]
[Date "2020.06.09"]
[Round "7"]
[White "Roza_Idrisova"]
[Black "topin8"]
[Result "1-0"]
[WhiteElo "2189"]
[BlackElo "2341"]
[TimeControl "180+1"]
[EndTime "10:19:09 PDT"]
[Termination "Roza_Idrisova won on time"]

1. d4 {[%clk 0:02:56.9]} 1... Nf6 {[%clk 0:02:59.6]} 2. Nf3 {[%clk 0:02:55.3]}
2... b6 {[%clk 0:02:58.1]} 3. c4 {[%clk 0:02:49.3]} 3... e6 {[%clk 0:02:55.4]}
4. a3 {[%clk 0:02:49]} 4... Bb7 {[%clk 0:02:54.4]} 5. Nc3 {[%clk 0:02:49]} 5...
Be7 {[%clk 0:02:53.1]} 6. Bg5 {[%clk 0:02:48]} 6... Ne4 {[%clk 0:02:51.1]} 7.
Nxe4 {[%clk 0:02:44.5]} 7... Bxe4 {[%clk 0:02:50.7]} 8. Bxe7 {[%clk 0:02:43.9]}
8... Qxe7 {[%clk 0:02:51.1]} 9. e3 {[%clk 0:02:44.1]} 9... O-O {[%clk 0:02:50]}
10. Bd3 {[%clk 0:02:44.1]} 10... Bxd3 {[%clk 0:02:23.6]} 11. Qxd3 {[%clk
0:02:43.5]} 11... d6 {[%clk 0:02:24.5]} 12. O-O {[%clk 0:02:42.7]} 12... Nd7
{[%clk 0:02:24.9]} 13. e4 {[%clk 0:02:42.9]} 13... a5 {[%clk 0:02:22.2]} 14. e5
{[%clk 0:02:42.6]} 14... Rfd8 {[%clk 0:02:14.4]} 15. Qe4 {[%clk 0:02:40.6]}
15... dxe5 {[%clk 0:02:11.5]} 16. Nxe5 {[%clk 0:02:39.8]} 16... Nxe5 {[%clk
0:02:11.5]} 17. dxe5 {[%clk 0:02:40]} 17... Qc5 {[%clk 0:02:06]} 18. Rad1 {[%clk
0:02:37.5]} 18... h6 {[%clk 0:02:04.7]} 19. h3 {[%clk 0:02:35.4]} 19... a4
{[%clk 0:02:03.7]} 20. Kh2 {[%clk 0:02:29.4]} 20... Rab8 {[%clk 0:01:56.2]} 21.
f4 {[%clk 0:02:26.3]} 21... g6 {[%clk 0:01:53]} 22. h4 {[%clk 0:02:14.1]} 22...
h5 {[%clk 0:01:50.3]} 23. Kh1 {[%clk 0:02:05.1]} 23... Kg7 {[%clk 0:01:39.8]}
24. Kh2 {[%clk 0:02:03.8]} 24... b5 {[%clk 0:01:23.9]} 25. cxb5 {[%clk
0:01:56.5]} 25... Qxb5 {[%clk 0:01:23.6]} 26. Rxd8 {[%clk 0:01:44.3]} 26... Rxd8
{[%clk 0:01:24.5]} 27. Rf2 {[%clk 0:01:44.3]} 27... c5 {[%clk 0:01:18.7]} 28.
Qe1 {[%clk 0:01:33.4]} 28... Rd3 {[%clk 0:01:12.7]} 29. Qc1 {[%clk 0:01:22.8]}
29... c4 {[%clk 0:00:56]} 30. Rc2 {[%clk 0:01:19.5]} 30... Rd4 {[%clk
0:00:55.5]} 31. Qe3 {[%clk 0:01:15.4]} 31... Qd5 {[%clk 0:00:54.9]} 32. Rf2
{[%clk 0:01:06.9]} 32... Rd3 {[%clk 0:00:51.6]} 33. Qc1 {[%clk 0:01:04]} 33...
Qe4 {[%clk 0:00:18.3]} 34. Qc2 {[%clk 0:00:53.4]} 34... Qd4 {[%clk 0:00:09.3]}
35. Qe2 {[%clk 0:00:41.5]} 35... Re3 {[%clk 0:00:05.7]} 36. Qc2 {[%clk 0:00:38]}
36... Rb3 {[%clk 0:00:05.8]} 37. Qe2 {[%clk 0:00:34.9]} 37... c3 {[%clk
0:00:03.1]} 38. bxc3 {[%clk 0:00:32.9]} 38... Qxc3 {[%clk 0:00:03.4]} 39. Rf3
{[%clk 0:00:31]} 39... Qc1 {[%clk 0:00:02.1]} 40. Kg3 {[%clk 0:00:13.2]} 40...
Qxa3 {[%clk 0:00:01.7]} 41. Qd2 {[%clk 0:00:07.7]} 1-0

[Event "*** SCC Grand Prix: Titled Tuesday Blitz"]
[Site "Chess.com"]
[Date "2020.06.09"]
[Round "7"]
[White "kushagramohan"]
[Black "MoonlighT89"]
[Result "0-1"]
[WhiteElo "2715"]
[BlackElo "2584"]
[TimeControl "180+1"]
[EndTime "10:19:10 PDT"]
[Termination "MoonlighT89 won by resignation"]

1. e4 {[%clk 0:03:00.9]} 1... c5 {[%clk 0:02:59.9]} 2. Nf3 {[%clk 0:03:00.6]}
2... e6 {[%clk 0:03:00.1]} 3. d4 {[%clk 0:03:00.8]} 3... cxd4 {[%clk 0:03:01]}
4. Nxd4 {[%clk 0:03:01.7]} 4... Nc6 {[%clk 0:03:01.3]} 5. Nc3 {[%clk 0:03:01.6]}
5... Qc7 {[%clk 0:03:01.2]} 6. f4 {[%clk 0:03:01.8]} 6... a6 {[%clk 0:02:59.8]}
7. Be2 {[%clk 0:03:01.4]} 7... b5 {[%clk 0:02:57.5]} 8. Nxc6 {[%clk 0:03:01.5]}
8... dxc6 {[%clk 0:02:53.8]} 9. Be3 {[%clk 0:03:01.4]} 9... Nf6 {[%clk
0:02:48.8]} 10. e5 {[%clk 0:03:00.6]} 10... Nd5 {[%clk 0:02:48.7]} 11. Nxd5
{[%clk 0:03:00.7]} 11... cxd5 {[%clk 0:02:48.8]} 12. Bd4 {[%clk 0:02:59.3]}
12... Bc5 {[%clk 0:02:48.4]} 13. c3 {[%clk 0:02:58.2]} 13... O-O {[%clk
0:02:40.9]} 14. O-O {[%clk 0:02:58]} 14... Bd7 {[%clk 0:02:40.6]} 15. Kh1 {[%clk
0:02:57.1]} 15... Rfc8 {[%clk 0:02:36.9]} 16. Rc1 {[%clk 0:02:53.8]} 16... Bxd4
{[%clk 0:02:32.8]} 17. cxd4 {[%clk 0:02:53.7]} 17... Qb6 {[%clk 0:02:31.4]} 18.
Qd2 {[%clk 0:02:50.1]} 18... g6 {[%clk 0:02:25.1]} 19. h4 {[%clk 0:02:48.6]}
19... h5 {[%clk 0:02:18.4]} 20. g3 {[%clk 0:02:46.5]} 20... b4 {[%clk
0:02:14.1]} 21. Kg2 {[%clk 0:02:30.3]} 21... a5 {[%clk 0:02:12.1]} 22. Kf2
{[%clk 0:02:26.7]} 22... Bb5 {[%clk 0:02:04.9]} 23. Bxb5 {[%clk 0:02:23]} 23...
Qxb5 {[%clk 0:02:04.8]} 24. Ke3 {[%clk 0:02:22.7]} 24... a4 {[%clk 0:01:58]} 25.
Rxc8+ {[%clk 0:02:18]} 25... Rxc8 {[%clk 0:01:57.4]} 26. Rc1 {[%clk 0:02:18.3]}
26... Rc4 {[%clk 0:00:35]} 27. b3 {[%clk 0:02:14.9]} 27... Rxc1 {[%clk
0:00:28.8]} 28. Qxc1 {[%clk 0:02:15.8]} 28... axb3 {[%clk 0:00:24.6]} 29. axb3
{[%clk 0:02:16.7]} 29... Qa5 {[%clk 0:00:24.2]} 30. f5 {[%clk 0:01:35.6]} 30...
gxf5 {[%clk 0:00:21]} 31. Kf4 {[%clk 0:01:34.8]} 31... Qa2 {[%clk 0:00:17.8]}
32. Qe3 {[%clk 0:01:23.4]} 32... Qc2 {[%clk 0:00:13.9]} 33. Kf3 {[%clk 0:01:11]}
33... Qe4+ {[%clk 0:00:13.4]} 34. Qxe4 {[%clk 0:00:33.2]} 34... fxe4+ {[%clk
0:00:14.3]} 35. Kf4 {[%clk 0:00:31.4]} 35... Kg7 {[%clk 0:00:14.3]} 36. Ke3
{[%clk 0:00:22.8]} 36... Kh6 {[%clk 0:00:13]} 37. Kf4 {[%clk 0:00:22.5]} 37...
Kg6 {[%clk 0:00:13.5]} 38. g4 {[%clk 0:00:20.5]} 38... hxg4 {[%clk 0:00:12.6]}
39. Kxg4 {[%clk 0:00:21.4]} 39... Kh6 {[%clk 0:00:13]} 40. Kf4 {[%clk
0:00:21.4]} 40... Kh5 {[%clk 0:00:10.9]} 41. Kg3 {[%clk 0:00:21.7]} 41... e3
{[%clk 0:00:09]} 42. Kf3 {[%clk 0:00:22.2]} 42... Kxh4 {[%clk 0:00:09.9]} 43.
Kxe3 {[%clk 0:00:21.8]} 43... Kg3 {[%clk 0:00:10.3]} 44. Ke2 {[%clk 0:00:19]}
44... Kf4 {[%clk 0:00:10.2]} 45. Kd3 {[%clk 0:00:18.3]} 45... Kf3 {[%clk
0:00:10.7]} 0-1

[Event "*** SCC Grand Prix: Titled Tuesday Blitz"]
[Site "Chess.com"]
[Date "2020.06.09"]
[Round "7"]
[White "VALPARAISO37"]
[Black "thedjoker98"]
[Result "1/2-1/2"]
[WhiteElo "2403"]
[BlackElo "2538"]
[TimeControl "180+1"]
[EndTime "10:19:10 PDT"]
[Termination "Game drawn - insufficient material"]

1. d4 {[%clk 0:03:00.9]} 1... d5 {[%clk 0:02:59.5]} 2. c4 {[%clk 0:03:00.6]}
2... c6 {[%clk 0:02:58.6]} 3. Nc3 {[%clk 0:03:00.8]} 3... dxc4 {[%clk
0:02:58.3]} 4. e4 {[%clk 0:03:00.4]} 4... b5 {[%clk 0:02:57.9]} 5. a4 {[%clk
0:03:00.8]} 5... b4 {[%clk 0:02:58]} 6. Na2 {[%clk 0:03:01.2]} 6... Nf6 {[%clk
0:02:58.5]} 7. e5 {[%clk 0:03:00.6]} 7... Nd5 {[%clk 0:02:58.2]} 8. Bxc4 {[%clk
0:03:00.3]} 8... e6 {[%clk 0:02:58.4]} 9. Nf3 {[%clk 0:03:00.5]} 9... Be7 {[%clk
0:02:58.3]} 10. O-O {[%clk 0:03:00.3]} 10... Ba6 {[%clk 0:02:57.4]} 11. Qe2
{[%clk 0:02:58.5]} 11... Qb6 {[%clk 0:02:55.8]} 12. Bd2 {[%clk 0:02:57.4]} 12...
O-O {[%clk 0:02:48.3]} 13. Nc1 {[%clk 0:02:57.5]} 13... c5 {[%clk 0:02:44.4]}
14. Nb3 {[%clk 0:02:51.9]} 14... cxd4 {[%clk 0:02:43.9]} 15. Nbxd4 {[%clk
0:02:51.3]} 15... Bxc4 {[%clk 0:02:43.1]} 16. Qxc4 {[%clk 0:02:51]} 16... Nd7
{[%clk 0:02:43.5]} 17. a5 {[%clk 0:02:50.4]} 17... Qb7 {[%clk 0:02:41.6]} 18.
Qb5 {[%clk 0:02:29.4]} 18... Qxb5 {[%clk 0:02:34.2]} 19. Nxb5 {[%clk 0:02:28.7]}
19... a6 {[%clk 0:02:35.1]} 20. Nbd4 {[%clk 0:02:27.3]} 20... Rfc8 {[%clk
0:02:34.8]} 21. Rfc1 {[%clk 0:02:25]} 21... Nc5 {[%clk 0:02:29.2]} 22. g3 {[%clk
0:02:20.5]} 22... Rc7 {[%clk 0:02:20.3]} 23. Rc4 {[%clk 0:02:17.9]} 23... Rac8
{[%clk 0:02:19.5]} 24. Rac1 {[%clk 0:02:17.8]} 24... Nb7 {[%clk 0:01:53.5]} 25.
Rxc7 {[%clk 0:02:07.6]} 25... Rxc7 {[%clk 0:01:54.4]} 26. Nc6 {[%clk 0:02:03.1]}
26... Kf8 {[%clk 0:01:44.1]} 27. Nfd4 {[%clk 0:01:43]} 27... Bc5 {[%clk
0:01:34.5]} 28. Kf1 {[%clk 0:01:18.1]} 28... Bxd4 {[%clk 0:01:24.4]} 29. Nxd4
{[%clk 0:01:17.7]} 29... Rxc1+ {[%clk 0:01:25.3]} 30. Bxc1 {[%clk 0:01:18.2]}
30... Nxa5 {[%clk 0:01:26.2]} 31. Ke2 {[%clk 0:01:18.4]} 31... Ke8 {[%clk
0:01:25.8]} 32. f4 {[%clk 0:01:12.4]} 32... Kd7 {[%clk 0:01:25.7]} 33. Kd3
{[%clk 0:01:12.7]} 33... Nc6 {[%clk 0:01:24.4]} 34. Nb3 {[%clk 0:01:11.2]} 34...
Nb8 {[%clk 0:01:18.8]} 35. Kc4 {[%clk 0:01:09.5]} 35... Kc6 {[%clk 0:01:15.1]}
36. Nd4+ {[%clk 0:01:07.6]} 36... Kb6 {[%clk 0:01:15.3]} 37. f5 {[%clk
0:01:03.4]} 37... Nc7 {[%clk 0:00:54.9]} 38. Kxb4 {[%clk 0:01:00.4]} 38... Nc6+
{[%clk 0:00:31.9]} 39. Nxc6 {[%clk 0:00:56.7]} 39... Kxc6 {[%clk 0:00:32.8]} 40.
fxe6 {[%clk 0:00:53.6]} 40... fxe6 {[%clk 0:00:33.7]} 41. Ka5 {[%clk 0:00:51.4]}
41... Kd5 {[%clk 0:00:27.5]} 42. Kb6 {[%clk 0:00:48.4]} 42... Nb5 {[%clk
0:00:27.6]} 43. Bf4 {[%clk 0:00:44.9]} 43... h6 {[%clk 0:00:24.7]} 44. h4 {[%clk
0:00:44.5]} 44... g5 {[%clk 0:00:24.7]} 45. hxg5 {[%clk 0:00:43.9]} 45... hxg5
{[%clk 0:00:25.6]} 46. Bxg5 {[%clk 0:00:44.3]} 46... Kxe5 {[%clk 0:00:26.1]} 47.
Kxa6 {[%clk 0:00:44.8]} 47... Nd4 {[%clk 0:00:26.3]} 48. b4 {[%clk 0:00:41.9]}
48... Kf5 {[%clk 0:00:25.2]} 49. Bh6 {[%clk 0:00:35.5]} 49... e5 {[%clk
0:00:22.5]} 50. b5 {[%clk 0:00:34.9]} 50... Nxb5 {[%clk 0:00:22.4]} 51. Kxb5
{[%clk 0:00:34.8]} 51... Kg4 {[%clk 0:00:23.3]} 52. Bf4 {[%clk 0:00:15.7]} 52...
exf4 {[%clk 0:00:21.2]} 53. gxf4 {[%clk 0:00:14.5]} 53... Kxf4 {[%clk
0:00:22.1]} 1/2-1/2

[Event "*** SCC Grand Prix: Titled Tuesday Blitz"]
[Site "Chess.com"]
[Date "2020.06.09"]
[Round "7"]
[White "GOGIEFF"]
[Black "Evgeny81"]
[Result "1-0"]
[WhiteElo "2910"]
[BlackElo "2761"]
[TimeControl "180+1"]
[EndTime "10:19:11 PDT"]
[Termination "GOGIEFF won by resignation"]

1. d4 {[%clk 0:03:00.9]} 1... Nf6 {[%clk 0:02:59.7]} 2. c4 {[%clk 0:02:58.3]}
2... e6 {[%clk 0:03:00.3]} 3. Nc3 {[%clk 0:02:57.8]} 3... Bb4 {[%clk 0:02:59.7]}
4. e3 {[%clk 0:02:58.2]} 4... b6 {[%clk 0:02:56.9]} 5. Ne2 {[%clk 0:02:54.1]}
5... Ne4 {[%clk 0:02:54.8]} 6. Qc2 {[%clk 0:02:50.2]} 6... Bb7 {[%clk
0:02:48.2]} 7. a3 {[%clk 0:02:49.2]} 7... Bxc3+ {[%clk 0:02:47.7]} 8. Nxc3
{[%clk 0:02:50.1]} 8... Nxc3 {[%clk 0:02:47.7]} 9. Qxc3 {[%clk 0:02:49.4]} 9...
Qh4 {[%clk 0:02:48.2]} 10. b4 {[%clk 0:02:42.1]} 10... d6 {[%clk 0:02:46.9]} 11.
Bb2 {[%clk 0:02:40.7]} 11... Nd7 {[%clk 0:02:45.3]} 12. d5 {[%clk 0:02:31.9]}
12... e5 {[%clk 0:02:41]} 13. Bd3 {[%clk 0:02:21.6]} 13... O-O {[%clk
0:02:34.9]} 14. O-O {[%clk 0:02:18.2]} 14... Rae8 {[%clk 0:02:28.6]} 15. f4
{[%clk 0:02:04.9]} 15... Qh6 {[%clk 0:02:09.3]} 16. Rae1 {[%clk 0:01:58.7]}
16... Bc8 {[%clk 0:01:54.1]} 17. Bc2 {[%clk 0:01:52.6]} 17... exf4 {[%clk
0:01:39.7]} 18. exf4 {[%clk 0:01:51.4]} 18... Nf6 {[%clk 0:01:39.6]} 19. Qg3
{[%clk 0:01:30]} 19... Bd7 {[%clk 0:01:10.5]} 20. Qg5 {[%clk 0:01:19]} 20...
Qxg5 {[%clk 0:01:03.1]} 21. fxg5 {[%clk 0:01:19.9]} 21... Rxe1 {[%clk 0:01:03]}
22. Rxe1 {[%clk 0:01:20.2]} 22... Re8 {[%clk 0:01:01.7]} 23. Rxe8+ {[%clk
0:01:19.8]} 23... Nxe8 {[%clk 0:01:01]} 24. Kf2 {[%clk 0:01:20]} 24... c5 {[%clk
0:00:41]} 25. dxc6 {[%clk 0:01:17.7]} 25... Bxc6 {[%clk 0:00:40.7]} 26. g3
{[%clk 0:01:12.9]} 26... Nc7 {[%clk 0:00:39.1]} 27. Ke3 {[%clk 0:01:13.1]} 27...
Ne6 {[%clk 0:00:31.3]} 28. h4 {[%clk 0:01:12.8]} 28... d5 {[%clk 0:00:27.8]} 29.
cxd5 {[%clk 0:01:11.7]} 29... Bxd5 {[%clk 0:00:28.7]} 30. Be4 {[%clk 0:01:11.9]}
30... Bc4 {[%clk 0:00:24.7]} 31. Be5 {[%clk 0:01:03]} 31... Bf1 {[%clk
0:00:15.8]} 32. Bb8 {[%clk 0:00:57.1]} 32... a5 {[%clk 0:00:15.6]} 33. bxa5
{[%clk 0:00:51.6]} 33... bxa5 {[%clk 0:00:15.3]} 34. Bd6 {[%clk 0:00:52.2]}
34... Bb5 {[%clk 0:00:12.4]} 35. Bd5 {[%clk 0:00:51.8]} 35... Bd7 {[%clk
0:00:07.8]} 36. Kd3 {[%clk 0:00:46.6]} 36... Bb5+ {[%clk 0:00:07.2]} 37. Kc3
{[%clk 0:00:46.6]} 37... g6 {[%clk 0:00:05.2]} 38. Bc4 {[%clk 0:00:45.2]} 38...
Bc6 {[%clk 0:00:04.5]} 39. Bb3 {[%clk 0:00:38.2]} 39... a4 {[%clk 0:00:03.6]}
40. Bc2 {[%clk 0:00:36.7]} 40... Kg7 {[%clk 0:00:02.4]} 41. Be5+ {[%clk
0:00:35.9]} 41... Kf8 {[%clk 0:00:02.2]} 42. Kb4 {[%clk 0:00:36.3]} 42... Ng7
{[%clk 0:00:02.3]} 43. Bxa4 {[%clk 0:00:34.7]} 43... Be4 {[%clk 0:00:01.9]} 44.
Bxg7+ {[%clk 0:00:33]} 44... Kxg7 {[%clk 0:00:02.1]} 45. Kc5 {[%clk 0:00:33.3]}
45... f6 {[%clk 0:00:02.5]} 46. Bc6 {[%clk 0:00:33.2]} 46... Bd3 {[%clk
0:00:02]} 47. a4 {[%clk 0:00:33.1]} 47... fxg5 {[%clk 0:00:02.4]} 48. hxg5
{[%clk 0:00:32.9]} 48... h6 {[%clk 0:00:03]} 49. a5 {[%clk 0:00:33]} 49... hxg5
{[%clk 0:00:02.5]} 50. Bb5 {[%clk 0:00:33.4]} 50... Be4 {[%clk 0:00:02.6]} 51.
a6 {[%clk 0:00:33.8]} 51... Kf6 {[%clk 0:00:03]} 52. Bc6 {[%clk 0:00:34.2]} 1-0

[Event "*** SCC Grand Prix: Titled Tuesday Blitz"]
[Site "Chess.com"]
[Date "2020.06.09"]
[Round "7"]
[White "Mazetovic"]
[Black "Jumbo"]
[Result "0-1"]
[WhiteElo "2627"]
[BlackElo "2823"]
[TimeControl "180+1"]
[EndTime "10:19:12 PDT"]
[Termination "Jumbo won by resignation"]

1. e4 {[%clk 0:03:00.9]} 1... c5 {[%clk 0:02:58]} 2. Nf3 {[%clk 0:03:00.8]} 2...
d6 {[%clk 0:02:58.5]} 3. Bb5+ {[%clk 0:03:00.6]} 3... Bd7 {[%clk 0:02:57.7]} 4.
Bxd7+ {[%clk 0:03:00.2]} 4... Nxd7 {[%clk 0:02:58.6]} 5. O-O {[%clk 0:02:56.8]}
5... Ngf6 {[%clk 0:02:59.1]} 6. Qe2 {[%clk 0:02:56.8]} 6... e6 {[%clk
0:02:59.7]} 7. b3 {[%clk 0:02:56.9]} 7... Be7 {[%clk 0:02:59.7]} 8. Bb2 {[%clk
0:02:57.3]} 8... O-O {[%clk 0:03:00.2]} 9. c4 {[%clk 0:02:57.7]} 9... a6 {[%clk
0:02:58.7]} 10. d4 {[%clk 0:02:54.7]} 10... cxd4 {[%clk 0:02:58.2]} 11. Nxd4
{[%clk 0:02:55.1]} 11... Qa5 {[%clk 0:02:55.6]} 12. Nc3 {[%clk 0:02:51.8]} 12...
Rac8 {[%clk 0:02:55.4]} 13. Rac1 {[%clk 0:02:48.6]} 13... Rfe8 {[%clk
0:02:55.5]} 14. Rfd1 {[%clk 0:02:43.8]} 14... Bf8 {[%clk 0:02:54.8]} 15. h3
{[%clk 0:02:22.6]} 15... Ne5 {[%clk 0:02:53.3]} 16. Nf3 {[%clk 0:02:05.6]} 16...
Ng6 {[%clk 0:02:51.8]} 17. g3 {[%clk 0:02:00.7]} 17... Rb8 {[%clk 0:02:12.3]}
18. a3 {[%clk 0:01:49.9]} 18... Rbc8 {[%clk 0:01:58.1]} 19. Kg2 {[%clk
0:01:41.8]} 19... Nd7 {[%clk 0:01:36]} 20. b4 {[%clk 0:01:40.6]} 20... Qc7
{[%clk 0:01:35.1]} 21. Nb1 {[%clk 0:01:39.6]} 21... Qb8 {[%clk 0:01:34.3]} 22.
Nbd2 {[%clk 0:01:38.4]} 22... Rc7 {[%clk 0:01:02.7]} 23. h4 {[%clk 0:01:37.9]}
23... h6 {[%clk 0:01:02.2]} 24. h5 {[%clk 0:01:37.7]} 24... Ne7 {[%clk
0:01:02.1]} 25. Nb3 {[%clk 0:01:34.8]} 25... Nc6 {[%clk 0:00:51.8]} 26. Nfd4
{[%clk 0:01:16.2]} 26... Rec8 {[%clk 0:00:43]} 27. Nxc6 {[%clk 0:01:15.4]} 27...
Rxc6 {[%clk 0:00:43.9]} 28. Nd4 {[%clk 0:01:14.7]} 28... R6c7 {[%clk 0:00:44.3]}
29. f4 {[%clk 0:01:14.1]} 29... Nb6 {[%clk 0:00:42.7]} 30. f5 {[%clk 0:01:03.2]}
30... e5 {[%clk 0:00:42.8]} 31. Nf3 {[%clk 0:00:57.4]} 31... Rxc4 {[%clk
0:00:42.5]} 32. Rxc4 {[%clk 0:00:55.9]} 32... Nxc4 {[%clk 0:00:42.1]} 33. Bc1
{[%clk 0:00:51.6]} 33... Be7 {[%clk 0:00:42.1]} 34. Nd2 {[%clk 0:00:47.1]} 34...
Nb6 {[%clk 0:00:39.1]} 35. Nf1 {[%clk 0:00:45.8]} 35... Qc7 {[%clk 0:00:35.1]}
36. Be3 {[%clk 0:00:45.4]} 36... Qc2 {[%clk 0:00:25.3]} 37. Rd2 {[%clk
0:00:44.5]} 37... Qxe4+ {[%clk 0:00:24.7]} 38. Qf3 {[%clk 0:00:44.1]} 38...
Qxf3+ {[%clk 0:00:23]} 39. Kxf3 {[%clk 0:00:44.4]} 39... Nc4 {[%clk 0:00:23.4]}
40. Rd3 {[%clk 0:00:44.5]} 40... b5 {[%clk 0:00:20.1]} 41. Ke4 {[%clk
0:00:43.9]} 41... Kf8 {[%clk 0:00:19.7]} 42. Bf2 {[%clk 0:00:40.8]} 42... Bg5
{[%clk 0:00:19.7]} 43. Bg1 {[%clk 0:00:38.5]} 43... Ke7 {[%clk 0:00:19.5]} 44.
Bf2 {[%clk 0:00:38.8]} 44... Kd7 {[%clk 0:00:17.9]} 45. g4 {[%clk 0:00:34.1]}
45... Kc6 {[%clk 0:00:17.8]} 46. Rc3 {[%clk 0:00:32.6]} 46... d5+ {[%clk
0:00:17.7]} 47. Kf3 {[%clk 0:00:32.4]} 47... e4+ {[%clk 0:00:17.9]} 48. Kg2
{[%clk 0:00:33]} 48... Bf6 {[%clk 0:00:18.3]} 49. Rc1 {[%clk 0:00:32.3]} 49...
d4 {[%clk 0:00:18.7]} 50. Ng3 {[%clk 0:00:32.1]} 50... Kd5 {[%clk 0:00:19.1]}
51. Re1 {[%clk 0:00:31.5]} 51... e3 {[%clk 0:00:19.1]} 52. Bg1 {[%clk
0:00:32.1]} 52... Be5 {[%clk 0:00:18.5]} 53. Nf1 {[%clk 0:00:30.4]} 53... Ke4
{[%clk 0:00:18.3]} 54. Bh2 {[%clk 0:00:30]} 54... Bxh2 {[%clk 0:00:17.9]} 55.
Kxh2 {[%clk 0:00:29.1]} 55... d3 {[%clk 0:00:18.3]} 56. Ng3+ {[%clk 0:00:29.4]}
56... Kd4 {[%clk 0:00:18.5]} 0-1

[Event "*** SCC Grand Prix: Titled Tuesday Blitz"]
[Site "Chess.com"]
[Date "2020.06.09"]
[Round "7"]
[White "juniortay"]
[Black "Caterpiller35"]
[Result "0-1"]
[WhiteElo "2396"]
[BlackElo "2303"]
[TimeControl "180+1"]
[EndTime "10:19:12 PDT"]
[Termination "Caterpiller35 won by resignation"]

1. e4 {[%clk 0:03:00.9]} 1... c5 {[%clk 0:02:58.8]} 2. Nf3 {[%clk 0:03:00.7]}
2... Nc6 {[%clk 0:02:59]} 3. b4 {[%clk 0:03:00]} 3... cxb4 {[%clk 0:02:57.3]} 4.
d4 {[%clk 0:03:00.1]} 4... d5 {[%clk 0:02:57.6]} 5. exd5 {[%clk 0:03:01]} 5...
Qxd5 {[%clk 0:02:57.7]} 6. c4 {[%clk 0:03:01.9]} 6... Qa5 {[%clk 0:02:51]} 7.
Nbd2 {[%clk 0:02:56.1]} 7... e6 {[%clk 0:02:48.1]} 8. Nb3 {[%clk 0:02:53.6]}
8... Qd8 {[%clk 0:02:44.8]} 9. d5 {[%clk 0:02:52.3]} 9... Na5 {[%clk 0:02:41.5]}
10. Bb2 {[%clk 0:02:45.8]} 10... Nf6 {[%clk 0:02:41.2]} 11. Ne5 {[%clk
0:02:36.4]} 11... Nxb3 {[%clk 0:02:24.7]} 12. Qxb3 {[%clk 0:02:25.6]} 12... Bc5
{[%clk 0:02:24.4]} 13. O-O-O {[%clk 0:02:22.9]} 13... exd5 {[%clk 0:02:21.1]}
14. Qa4+ {[%clk 0:02:12.3]} 14... Kf8 {[%clk 0:02:11.6]} 15. Bd3 {[%clk
0:02:03.3]} 15... Be6 {[%clk 0:02:05.6]} 16. Kb1 {[%clk 0:01:50.4]} 16... Qc7
{[%clk 0:01:42.4]} 17. f4 {[%clk 0:01:39.2]} 17... a6 {[%clk 0:01:34.8]} 18. f5
{[%clk 0:00:33.5]} 18... dxc4 {[%clk 0:01:06.9]} 19. fxe6 {[%clk 0:00:29.7]}
19... b5 {[%clk 0:00:53.7]} 20. Qc2 {[%clk 0:00:26.9]} 20... fxe6 {[%clk
0:00:38.9]} 21. Be4 {[%clk 0:00:22.7]} 21... Rc8 {[%clk 0:00:34.8]} 22. Rhf1
{[%clk 0:00:21.9]} 22... c3 {[%clk 0:00:33.2]} 23. Nd7+ {[%clk 0:00:19.7]} 23...
Ke7 {[%clk 0:00:30.7]} 24. Nxf6 {[%clk 0:00:18.3]} 24... gxf6 {[%clk 0:00:28.5]}
25. Qe2 {[%clk 0:00:17]} 25... cxb2 {[%clk 0:00:24.4]} 26. Qh5 {[%clk
0:00:15.4]} 26... Qe5 {[%clk 0:00:21.7]} 27. Qh4 {[%clk 0:00:12]} 27... Be3
{[%clk 0:00:20.7]} 28. Bd3 {[%clk 0:00:10.9]} 28... Rc1+ {[%clk 0:00:19.9]} 29.
Rxc1 {[%clk 0:00:09.6]} 29... bxc1=Q+ {[%clk 0:00:20.1]} 30. Rxc1 {[%clk
0:00:09.2]} 30... Bxc1 {[%clk 0:00:19.2]} 31. Kxc1 {[%clk 0:00:08.2]} 31... Rc8+
{[%clk 0:00:15.9]} 32. Bc2 {[%clk 0:00:08]} 32... Qa1+ {[%clk 0:00:14.9]} 33.
Kd2 {[%clk 0:00:07.6]} 33... Qc3+ {[%clk 0:00:15.8]} 34. Kd1 {[%clk 0:00:05.8]}
34... Qxc2+ {[%clk 0:00:16]} 35. Ke1 {[%clk 0:00:05.1]} 35... Qc1+ {[%clk
0:00:14.4]} 36. Kf2 {[%clk 0:00:04.6]} 36... Rc2+ {[%clk 0:00:13.5]} 37. Kg3
{[%clk 0:00:04.5]} 37... Qe3+ {[%clk 0:00:13.8]} 38. Kg4 {[%clk 0:00:04.1]}
38... Rc4+ {[%clk 0:00:14.4]} 0-1